bitfinex-derivatives/quotes_ETHF0:USTF0_20250912
["timestamp","ask_amount","ask_price","bid_price","bid_amount"]
[1757656747607,0.52780802,4560.1,4560.0,0.8279]
[1757656747803,0.229,4560.1,4560.0,0.8279]
[1757656748807,0.229,4560.1,4560.0,0.5357]
[1757656749010,0.229,4560.1,4560.0,0.8279]
[1757656749710,0.229,4560.1,4560.0,0.4168]
[1757656750406,0.229,4560.1,4560.0,0.627]
[1757656750606,0.17456265,4561.0,4560.1,0.2922]
[1757656750806,3.73836504,4561.1,4560.0,0.3348]
[1757656750807,0.97587755,4560.9,4560.2,0.2922]
[1757656751006,0.52760755,4560.8,4560.3,0.2102]
[1757656751207,0.75660755,4560.7,4560.6,0.2922]
[1757656751411,0.75660755,4560.7,4560.5,0.1246]
[1757656751712,0.52760755,4560.6,4560.5,0.1246]
[1757656752316,0.75660755,4560.6,4560.5,0.1246]
[1757656752611,0.75660755,4560.6,4560.5,0.4168]
[1757656752911,0.75660755,4560.6,4560.0,0.4168]
[1757656753113,0.52760755,4560.5,4560.1,0.2922]
[1757656753307,0.52760755,4560.5,4560.2,0.2922]
[1757656753512,0.75660755,4560.4,4560.3,0.2922]
[1757656754809,0.75660755,4560.4,4560.1,0.2922]
[1757656755009,0.52760755,4560.3,4560.1,0.2922]
[1757656756310,0.52760755,4560.3,4559.7,0.2922]
[1757656757312,3.73836504,4559.9,4559.7,0.2922]
[1757656757514,0.75560755,4559.8,4559.7,0.2922]
[1757656758708,0.52760755,4559.8,4559.7,0.5024]
[1757656758909,1.17118644,4560.4,4559.8,0.2922]
[1757656759109,0.228,4560.3,4560.0,0.1246]
[1757656759416,1.92786009,4560.3,4560.1,0.2922]
[1757656759612,0.52867365,4560.2,4560.1,0.2922]
[1757656760012,4.52867365,4560.2,4560.0,0.1246]
[1757656760213,0.52867365,4560.1,4560.0,0.1246]
[1757656760418,0.52867365,4560.1,4560.0,0.4168]
[1757656760717,1.69986009,4560.1,4560.0,0.4168]
[1757656761012,4.0,4560.1,4559.6,0.2922]
[1757656761316,3.73836504,4560.5,4559.6,0.2922]
[1757656761317,3.73836504,4559.8,4559.6,0.2922]
[1757656761610,0.75667365,4559.7,4559.6,0.2922]
[1757656762408,4.75667365,4559.7,4559.2,0.2922]
[1757656762607,1.71129555,4559.6,4559.2,0.2922]
[1757656763117,1.1826219,4559.4,4559.2,0.2922]
[1757656763317,0.228,4559.3,4559.0,0.4188]
[1757656763519,3.73836504,4559.1,4559.0,0.4188]
[1757656763710,4.26703869,4559.1,4559.0,0.4188]
[1757656764618,4.26703869,4559.1,4558.6,0.2922]
[1757656764816,4.26703869,4559.1,4558.5,0.1246]
[1757656764817,0.75667365,4559.0,4558.5,0.1246]
[1757656765012,0.52867365,4558.9,4558.6,0.2922]
[1757656765517,0.52867365,4558.9,4558.6,0.2102]
[1757656765710,0.52867365,4558.9,4558.5,0.3348]
[1757656765910,0.52867365,4558.9,4558.5,0.1246]
[1757656766111,0.52867365,4558.9,4558.8,0.7033]
[1757656766321,0.75667365,4558.9,4558.8,0.7033]
[1757656767520,0.52867365,4558.9,4558.8,0.7033]
[1757656767714,0.75667365,4558.9,4558.8,4.7064]
[1757656767915,0.228,4558.9,4558.8,4.7064]
[1757656768623,31.594,4559.5,4559.4,0.4007]
[1757656768815,32.12261212,4559.5,4559.4,0.696]
[1757656769014,32.35061212,4559.5,4559.4,0.696]
[1757656770120,32.12261212,4559.5,4559.4,0.696]
[1757656770318,0.52861212,4559.5,4559.4,0.696]
[1757656770519,0.2021,4560.6,4560.5,0.3313]
[1757656770819,0.4301,4560.6,4560.5,0.8205]
[1757656771219,0.6376,4560.6,4560.5,0.8205]
[1757656772222,0.2021,4560.6,4560.5,0.8205]
[1757656772423,0.6376,4560.6,4560.5,0.8205]
[1757656777717,1.1826219,4561.2,4561.0,0.1245]
[1757656777919,0.4301,4561.1,4561.0,0.8205]
[1757656778120,0.6376,4561.1,4561.0,0.8205]
[1757656778720,21.76925367,4561.6,4561.0,0.8205]
[1757656778721,0.0102484,4561.6,4561.5,0.8205]
[1757656778924,2.17569984,4562.9,4561.5,0.8205]
[1757656778925,0.228,4562.3,4562.0,0.1245]
[1757656779229,1.1826219,4562.9,4562.2,0.696]
[1757656779230,1.3861219,4562.9,4562.2,0.696]
[1757656779523,0.2021,4563.1,4563.0,0.5252]
[1757656779724,0.4301,4563.1,4563.0,0.8205]
[1757656780028,0.6376,4563.1,4563.0,0.8205]
[1757656780321,0.2021,4562.6,4562.5,0.8205]
[1757656780528,0.4301,4562.6,4562.5,0.8205]
[1757656781833,0.6376,4562.6,4562.5,0.6137]
[1757656782023,0.8411,4562.6,4562.5,0.4198]
[1757656782220,0.8411,4562.6,4562.0,0.4198]
[1757656782422,0.2021,4562.1,4562.0,0.5252]
[1757656782623,0.4301,4562.1,4562.0,0.8205]
[1757656782920,1.36551308,4562.1,4562.0,0.4198]
[1757656783118,0.93401308,4562.1,4562.0,0.8205]
[1757656783324,0.6376,4562.1,4562.0,0.8205]
[1757656784425,0.4096,4562.1,4562.0,0.8205]
[1757656784728,0.4301,4562.1,4562.0,0.8205]
[1757656784929,0.228,4562.1,4562.0,0.8205]
[1757656785136,0.2035,4562.8,4562.0,0.8205]
[1757656785316,0.2021,4562.2,4562.1,0.4892]
[1757656785521,0.95314197,4562.2,4562.1,0.696]
[1757656785723,0.93264197,4562.2,4562.1,0.696]
[1757656785923,1.16064197,4562.2,4562.1,0.696]
[1757656786425,1.16064197,4562.2,4562.1,0.4892]
[1757656786730,1.36414197,4562.2,4562.1,0.2953]
[1757656787227,0.2021,4561.6,4561.5,0.3184]
[1757656787427,0.4301,4561.6,4561.5,0.5252]
[1757656787623,0.2021,4562.1,4562.0,0.5252]
[1757656787829,0.75076984,4562.1,4562.0,0.8205]
[1757656788326,0.95286984,4562.1,4562.0,0.8205]
[1757656789223,1.16036984,4562.1,4562.0,0.6137]
[1757656789423,1.36386984,4562.1,4562.0,0.6137]
[1757656790329,1.36386984,4562.1,4561.5,0.4198]
[1757656790534,0.4096,4561.6,4561.5,0.3184]
[1757656790831,0.6376,4561.6,4561.5,0.5252]
[1757656791128,0.6376,4561.6,4561.5,0.8205]
[1757656792529,0.95289577,4561.6,4561.5,0.8205]
[1757656793039,1.16039577,4561.6,4561.5,0.8205]
[1757656793527,1.36389577,4561.6,4561.5,0.4198]
[1757656793929,1.36389577,4561.6,4561.5,0.6137]
[1757656794333,1.36389577,4561.6,4561.0,0.1245]
[1757656794633,0.4096,4561.1,4561.0,0.6137]
[1757656794825,0.6376,4561.1,4561.0,0.8205]
[1757656796427,0.52380225,4561.1,4561.0,0.8205]
[1757656796827,0.228,4561.1,4561.0,0.8205]
[1757656797336,0.90370374,4561.9,4561.8,0.4007]
[1757656797524,1.16172086,4561.9,4561.8,0.696]
[1757656797725,1.36552086,4561.9,4561.8,0.2953]
[1757656798223,1.13752086,4561.9,4561.8,0.2953]
[1757656798421,1.36552086,4561.9,4561.8,0.2953]
[1757656798826,0.2038,4561.8,4561.6,0.2942]
[1757656799031,0.6984,4561.1,4561.0,0.5271]
[1757656799231,1.14832086,4561.1,4561.0,0.5271]
[1757656799629,0.52412086,4561.1,4561.0,0.5271]
[1757656799828,0.75212086,4561.1,4561.0,0.5271]
[1757656800028,0.52412086,4561.1,4561.0,0.5271]
[1757656800333,0.3022,4561.8,4561.0,4.5271]
[1757656800535,0.228,4561.7,4561.6,0.0558]
[1757656800727,0.7346,4561.7,4561.6,0.0558]
[1757656800932,0.9264,4561.7,4561.6,0.0558]
[1757656801130,0.6984,4561.7,4561.6,0.0279]
[1757656801333,0.9264,4561.7,4561.6,0.0279]
[1757656801638,0.9264,4561.7,4559.6,0.0181]
[1757656801837,0.87462477,4561.7,4559.7,0.0181]
[1757656802032,35.95392447,4562.0,4559.8,0.0181]
[1757656802033,0.1201,4561.5,4559.8,0.0181]
[1757656802233,0.6267,4561.5,4561.4,0.0279]
[1757656802433,1.0465,4561.5,4561.4,0.0279]
[1757656802635,0.8185,4561.0,4559.7,0.0181]
[1757656802840,0.228,4560.9,4559.7,0.0181]
[1757656803049,0.3022,4560.8,4559.7,0.0181]
[1757656804237,0.3022,4560.8,4558.7,31.593]
[1757656804428,0.3022,4560.8,4558.9,0.0181]
[1757656804629,1.4848219,4560.8,4559.0,0.21930999]
[1757656805039,0.8185,4559.5,4559.4,0.0279]
[1757656805240,0.8185,4559.5,4559.4,0.0558]
[1757656805437,0.6267,4559.5,4559.4,0.0558]
[1757656807039,0.4223,4559.5,4559.4,4.0739]
[1757656807242,0.3022,4559.9,4559.4,4.0739]
[1757656807544,0.4223,4559.5,4559.4,0.0558]
[1757656807740,0.8185,4559.5,4559.4,0.0558]
[1757656808135,0.8185,4559.5,4559.4,0.0279]
[1757656808438,0.8185,4559.5,4558.6,0.0181]
[1757656808639,0.8185,4559.5,4558.7,0.21934]
[1757656808938,0.8185,4559.5,4558.6,0.0181]
[1757656809133,0.6267,4559.0,4558.9,0.0279]
[1757656809329,0.6267,4559.0,4557.2,31.585]
[1757656809330,0.8185,4559.0,4557.2,31.585]
[1757656809534,0.5302,4558.9,4557.4,0.0181]
[1757656809737,0.3022,4558.9,4557.4,0.0181]
[1757656809942,0.3022,4558.9,4557.3,0.21939]
[1757656809943,0.6846,4558.8,4558.7,0.0558]
[1757656810131,0.5066,4558.8,4558.7,0.0558]
[1757656810339,0.7346,4558.8,4558.7,0.0558]
[1757656811140,0.5066,4558.8,4558.7,0.0558]
[1757656811540,0.3022,4558.8,4558.7,0.0558]
[1757656811744,0.3022,4559.4,4559.2,0.0558]
[1757656811936,0.3022,4559.3,4559.2,0.0558]
[1757656812138,0.3022,4559.2,4557.3,0.0181]
[1757656812436,0.3022,4558.9,4557.4,0.0181]
[1757656812636,0.3022,4558.7,4557.4,0.23747]
[1757656812837,0.1201,4559.0,4557.4,0.23747]
[1757656812838,0.4223,4557.5,4557.4,0.0558]
[1757656813033,0.3962,4557.5,4557.4,0.0558]
[1757656813350,0.8185,4557.5,4556.1,0.0181]
[1757656813646,0.8185,4557.5,4556.2,0.21945]
[1757656813835,0.4223,4557.5,4557.4,0.0558]
[1757656814036,0.1201,4558.0,4557.4,0.0558]
[1757656814237,0.4223,4558.0,4557.4,0.0739]
[1757656815041,0.4223,4558.0,4557.4,4.29331]
[1757656815240,0.1201,4558.5,4558.0,0.0181]
[1757656815440,0.5163,4558.5,4557.5,0.23749999]
[1757656815640,0.5163,4558.5,4557.5,0.0181]
[1757656815840,0.8185,4558.5,4558.4,0.0279]
[1757656816343,0.8185,4558.5,4557.5,0.0181]
[1757656817046,0.8185,4558.5,4555.6,4.24982447]
[1757656817047,0.8185,4558.5,4556.5,0.0181]
[1757656817247,0.8185,4558.5,4556.6,0.008]
[1757656817449,0.8185,4558.5,4556.6,0.22742]
[1757656817647,0.8185,4558.5,4556.5,0.0181]
[1757656817844,0.8185,4558.5,4556.6,0.21942]
[1757656818049,0.8185,4558.5,4556.5,0.0181]
[1757656818642,0.75507098,4558.4,4556.5,0.0181]
[1757656818849,0.5312,4558.3,4556.5,0.0181]
[1757656819054,0.5312,4558.3,4556.1,0.0211]
[1757656819355,0.3022,4558.3,4556.1,0.0211]
[1757656819550,0.1201,4558.0,4556.3,0.0181]
[1757656819847,0.3022,4557.9,4556.3,0.0181]
[1757656820144,0.1201,4558.5,4557.8,0.0739]
[1757656820451,0.4223,4558.5,4557.8,0.0739]
[1757656820650,0.4223,4558.5,4558.4,0.0558]
[1757656821148,0.4223,4558.5,4558.4,4.0558]
[1757656821543,0.6267,4558.5,4558.4,0.0558]
[1757656821848,0.8185,4558.5,4558.4,0.0558]
[1757656822050,0.8185,4558.5,4557.3,0.0181]
[1757656822248,0.8185,4558.5,4557.3,0.23749999]
[1757656822448,0.8185,4558.5,4557.3,0.1851]
[1757656823649,0.8185,4558.5,4557.3,0.167]
[1757656824541,0.8185,4558.5,4557.0,0.0181]
[1757656824745,0.8185,4558.5,4557.0,0.36951]
[1757656824947,0.8185,4558.5,4557.0,0.1501]
[1757656826046,0.3022,4558.4,4556.5,0.0181]
[1757656826248,0.3022,4558.4,4555.7,0.17358863]
[1757656826453,0.1201,4558.5,4555.8,0.44844]
[1757656826649,0.3022,4558.3,4555.9,0.0181]
[1757656826858,0.3022,4558.3,4556.0,0.0181]
[1757656827050,0.229,4558.2,4556.0,0.23754]
[1757656827252,0.1201,4558.0,4556.0,0.0181]
[1757656827450,0.3022,4557.9,4556.1,0.21944]
[1757656827757,0.1201,4558.0,4556.6,4.24982447]
[1757656827956,0.1991,4556.7,4556.6,0.2581]
[1757656828147,0.4976,4556.7,4556.6,0.0291]
[1757656828544,0.4976,4556.7,4556.6,0.0582]
[1757656833163,0.7081,4556.7,4556.6,0.0582]
[1757656834857,0.2985,4556.9,4556.6,4.0582]
[1757656835062,0.2985,4557.3,4556.9,0.0582]
[1757656835261,0.2985,4557.3,4557.2,0.0582]
[1757656835559,0.2985,4556.4,4555.4,0.0182]
[1757656835760,0.2985,4556.4,4555.1,0.2462]
[1757656835955,0.2985,4556.4,4555.2,0.21949999]
[1757656836467,0.2985,4556.4,4555.1,0.2462]
[1757656836663,0.2985,4556.4,4555.2,0.21949999]
[1757656836961,0.1223,4556.5,4555.1,0.46569999]
[1757656837559,0.2985,4556.4,4555.1,0.46569999]
[1757656837761,0.2985,4556.4,4555.1,0.2462]
[1757656841566,0.1991,4555.2,4555.1,0.2571]
[1757656841765,0.7081,4555.2,4555.1,0.2571]
[1757656841958,0.7081,4555.2,4555.1,0.0291]
[1757656843463,0.1223,4555.5,4554.9,0.229]
[1757656843464,0.5319,4555.0,4554.9,0.229]
[1757656843658,0.8304,4555.0,4554.9,0.229]
[1757656848170,0.4208,4554.5,4554.4,31.602]
[1757656853377,0.4208,4555.0,4554.9,0.0582]
[1757656854274,0.2985,4555.4,4554.9,4.0582]
[1757656854482,0.2985,4555.4,4555.3,1.13785408]
[1757656854775,0.4976,4555.4,4555.3,1.36685408]
[1757656856077,0.2985,4555.4,4555.3,1.36685408]
[1757656856374,0.2985,4555.4,4555.3,4.02721602]
[1757656856575,0.1223,4556.0,4555.3,4.02721602]
[1757656856576,0.3214,4556.0,4555.9,0.0582]
[1757656857173,0.4208,4556.0,4555.9,0.0582]
[1757656857374,0.4208,4556.0,4555.9,0.0764]
[1757656858469,0.4208,4556.0,4555.9,0.0582]
[1757656858782,0.3083,4556.4,4555.9,0.0582]
[1757656859072,0.3083,4556.4,4555.7,0.40088134]
[1757656859073,0.1223,4556.5,4556.4,0.0764]
[1757656859274,0.1223,4557.5,4556.4,0.3054]
[1757656859472,0.1223,4557.5,4556.4,0.2872]
[1757656859668,0.1223,4557.5,4556.5,0.39488]
[1757656859669,0.3083,4556.9,4556.5,0.39488]
[1757656859874,0.3083,4556.9,4556.8,0.0582]
[1757656860276,0.5003,4556.9,4556.8,0.0582]
[1757656861879,0.1223,4557.5,4556.8,4.0764]
[1757656862179,0.5003,4557.9,4557.8,0.0582]
[1757656862486,0.7079,4557.9,4557.8,0.2862]
[1757656863576,0.7079,4557.9,4557.8,0.2571]
[1757656863777,0.7079,4557.9,4557.8,0.228]
[1757656864479,0.1205,4557.0,4556.9,3.91384199]
[1757656864783,0.1205,4557.0,4556.9,0.2571]
[1757656864784,0.8284,4557.0,4556.9,0.2571]
[1757656868476,0.8284,4557.0,4556.9,0.228]
[1757656869484,0.8284,4557.0,4556.5,0.228]
[1757656872389,0.7079,4555.8,4555.7,0.3413]
[1757656872879,0.7079,4555.8,4555.7,0.133]
[1757656873883,0.7079,4555.8,4555.7,0.39880417]
[1757656874990,0.7079,4555.8,4555.7,0.81300417]
[1757656876884,0.3083,4556.2,4555.8,0.2462]
[1757656877185,0.3083,4556.2,4556.1,0.6604]
[1757656877389,0.1205,4557.0,4556.4,0.6604]
[1757656877586,0.5201,4557.0,4556.9,0.2083]
[1757656877890,0.5201,4557.0,4556.9,0.68000417]
[1757656878083,0.8284,4557.0,4556.9,0.68000417]
[1757656879582,0.8284,4557.0,4556.9,0.26580417]
[1757656879992,4.8284,4557.0,4556.9,0.26580417]
[1757656880688,4.8284,4557.0,4556.9,4.17e-06]
[1757656880986,0.3083,4556.9,4554.8,31.8954]
[1757656881283,0.192,4554.9,4554.8,31.8954]
[1757656881483,0.5003,4554.9,4554.8,32.1234]
[1757656882087,0.5003,4554.9,4554.8,31.833]
[1757656882884,0.5003,4554.9,4554.8,32.1234]
[1757656883193,0.5003,4554.9,4554.8,31.8954]
[1757656883396,0.5003,4554.9,4554.8,32.1234]
[1757656883586,0.192,4554.9,4554.8,32.1234]
[1757656884288,0.5003,4554.9,4554.8,31.605]
[1757656884591,0.5003,4554.9,4554.8,31.833]
[1757656885883,0.5201,4555.5,4555.4,0.2083]
[1757656886089,0.192,4556.0,4555.9,0.7046]
[1757656886290,0.1205,4557.5,4555.9,0.4142]
[1757656886595,0.3083,4557.9,4557.3,0.2904]
[1757656886783,0.3083,4557.9,4557.5,0.2904]
[1757656886986,0.4288,4558.0,4557.5,0.2904]
[1757656887186,0.1205,4558.0,4557.4,0.228]
[1757656887994,0.308,4557.9,4557.4,0.228]
[1757656888194,0.4285,4558.0,4557.5,0.3124]
[1757656888496,0.1205,4558.0,4557.4,0.228]
[1757656888985,0.1205,4558.5,4557.4,0.228]
[1757656888986,0.308,4558.4,4557.5,0.3124]
[1757656889183,0.308,4558.4,4557.6,0.3124]
[1757656890486,0.1205,4558.5,4557.6,0.2068]
[1757656890487,0.7147,4557.7,4557.6,0.2068]
[1757656891696,0.308,4558.4,4557.7,0.3124]
[1757656892796,0.7147,4558.4,4558.3,0.2068]
[1757656892987,0.7147,4558.4,4558.3,0.4006]
[1757656893192,0.7147,4558.4,4558.3,0.713]
[1757656893394,0.308,4558.3,4558.1,0.228]
[1757656893589,0.1205,4558.5,4558.1,0.228]
[1757656893590,0.7147,4558.2,4558.1,0.4348]
[1757656896196,0.7147,4558.2,4557.1,0.3124]
[1757656896393,0.1971,4556.7,4556.6,0.713]
[1757656896702,0.7147,4556.7,4556.6,0.713]
[1757656897395,0.7147,4556.7,4556.5,31.609]
[1757656897396,0.308,4556.6,4556.5,31.609]
[1757656897692,0.841,4557.0,4556.9,0.2068]
[1757656898489,0.308,4556.9,4556.5,31.609]
[1757656898699,0.4067,4556.6,4556.5,31.609]
[1757656898899,0.1263,4557.0,4556.4,0.228]
[1757656898900,0.841,4556.5,4556.4,0.228]
[1757656899099,0.841,4556.5,4556.4,0.4348]
[1757656899395,0.6314,4557.0,4556.9,0.2068]
[1757656899600,0.841,4557.0,4556.9,0.2068]
[1757656900002,0.533,4557.0,4556.6,0.3124]
[1757656900203,0.5051,4556.7,4556.6,0.713]
[1757656900404,0.7147,4556.7,4556.6,0.713]
[1757656900597,0.7147,4556.7,4556.6,0.4006]
[1757656900798,0.308,4556.6,4556.4,0.228]
[1757656901407,0.841,4556.5,4556.4,0.228]
[1757656902402,0.841,4556.5,4555.9,0.3124]
[1757656902597,0.841,4556.5,4555.2,0.3124]
[1757656902796,0.841,4556.5,4555.3,0.228]
[1757656903200,0.7147,4555.4,4555.3,0.4348]
[1757656904404,0.7147,4555.4,4555.3,0.228]
[1757656905000,0.308,4555.9,4555.3,0.941]
[1757656905206,0.1263,4556.5,4555.8,0.4006]
[1757656905207,0.308,4556.4,4555.8,0.4006]
[1757656905505,0.7147,4556.4,4556.3,0.2068]
[1757656905702,0.7147,4556.4,4555.0,31.89529913]
[1757656905703,0.1263,4556.0,4555.0,31.7209]
[1757656906002,0.841,4556.0,4555.9,0.2068]
[1757656906398,0.533,4556.0,4555.5,0.3124]
[1757656906600,0.5051,4555.9,4555.8,0.713]
[1757656906801,0.308,4556.4,4555.8,0.713]
[1757656908706,0.308,4556.4,4555.8,0.4006]
[1757656909011,0.7147,4556.4,4556.3,0.713]
[1757656909209,0.7147,4556.4,4556.3,0.4006]
[1757656909705,0.5051,4556.4,4556.3,0.713]
[1757656912103,0.7147,4556.4,4555.7,0.3124]
[1757656912311,0.308,4556.3,4555.2,0.228]
[1757656912506,0.308,4556.3,4555.3,0.3124]
[1757656913005,0.7147,4556.3,4556.2,0.713]
[1757656913403,0.7147,4556.3,4556.2,0.4006]
[1757656914002,0.1263,4557.0,4556.3,0.3124]
[1757656914003,0.308,4556.7,4556.3,0.3124]
[1757656914210,0.308,4556.9,4556.3,0.3124]
[1757656914915,0.1971,4556.4,4556.3,0.713]
[1757656915112,0.1971,4556.4,4556.3,0.2068]
[1757656915113,0.7147,4556.4,4556.3,0.2068]
[1757656915415,0.4067,4555.9,4555.8,0.4348]
[1757656915614,0.7147,4555.9,4555.8,0.4348]
[1757656915816,0.7147,4555.9,4555.8,0.7472]
[1757656916017,0.7147,4555.9,4555.8,0.4348]
[1757656916314,0.308,4555.8,4555.4,0.228]
[1757656916514,0.841,4555.5,4555.4,0.4348]
[1757656916714,0.841,4555.5,4555.2,0.228]
[1757656917111,0.841,4555.5,4555.0,31.9144]
[1757656917112,0.4067,4555.2,4555.1,0.228]
[1757656917311,0.7147,4555.2,4555.1,0.228]
[1757656917921,0.7147,4555.2,4555.1,0.4348]
[1757656919821,0.7147,4555.2,4555.1,0.228]
[1757656921716,0.6849,4554.7,4554.6,0.4207]
[1757656921921,0.6849,4554.7,4554.6,0.9137]
[1757656923518,0.6849,4554.7,4554.6,0.6239]
[1757656924429,0.6849,4554.7,4554.6,0.4207]
[1757656926727,0.6849,4554.7,4554.6,0.228]
[1757656927224,0.6849,4554.7,4553.9,0.2898]
[1757656927419,0.8106,4554.0,4553.9,0.228]
[1757656930533,0.8106,4554.0,4553.9,0.4207]
[1757656931532,0.8106,4554.0,4553.9,0.228]
[1757656935030,0.6849,4554.0,4553.9,0.9137]
[1757656935234,0.4892,4554.5,4554.4,0.6857]
[1757656935526,0.8106,4554.5,4554.4,0.6857]
[1757656936424,0.8106,4554.5,4554.4,0.3959]
[1757656936825,0.8106,4554.5,4553.7,0.2898]
[1757656937131,0.6849,4553.6,4553.5,31.8988]
[1757656937331,0.6849,4553.6,4553.5,32.1268]
[1757656938237,0.6849,4553.6,4553.5,31.837]
[1757656938925,0.6849,4553.6,4553.5,32.1268]
[1757656939122,0.4892,4554.0,4553.9,0.6857]
[1757656939337,0.4892,4554.0,4553.9,0.9137]
[1757656939524,0.6849,4554.0,4553.9,0.6239]
[1757656939731,0.8106,4554.0,4553.9,0.228]
[1757656942127,0.772,4553.6,4553.5,31.609]
[1757656942329,1.0623,4553.6,4553.5,31.837]
[1757656942534,0.4892,4553.1,4553.0,0.6857]
[1757656942833,0.4892,4553.1,4553.0,0.9137]
[1757656943833,0.772,4553.6,4553.5,0.8124]
[1757656944031,0.772,4553.6,4553.5,1.0404]
[1757656944434,0.9709,4553.6,4553.5,1.0404]
[1757656944634,1.2612,4553.6,4553.5,1.0404]
[1757656945533,0.772,4553.6,4553.5,1.0404]
[1757656946642,0.4892,4554.6,4554.5,0.6857]
[1757656946836,0.6849,4554.6,4554.5,0.6857]
[1757656948039,0.6849,4554.6,4554.5,0.3959]
[1757656948240,0.6849,4554.6,4554.5,0.1927]
[1757656948442,0.6849,4554.6,4554.5,0.3886]
[1757656948931,0.7101,4554.2,4554.1,0.2994]
[1757656949130,0.7101,4554.2,4554.1,0.9241]
[1757656950738,0.1214,4554.0,4553.2,0.2994]
[1757656950942,0.7101,4553.8,4553.3,0.228]
[1757656951141,0.3927,4553.8,4553.3,0.5274]
[1757656951343,0.7101,4553.7,4553.6,0.3967]
[1757656951541,0.7101,4553.7,4553.6,0.6961]
[1757656952736,0.7101,4553.7,4553.6,0.3967]
[1757656952942,0.7101,4553.7,4553.5,0.228]
[1757656953245,0.3174,4553.6,4553.5,0.228]
[1757656953443,0.5141,4553.5,4553.4,0.228]
[1757656953635,0.7101,4553.5,4553.4,0.6247]
[1757656953840,0.8315,4553.5,4553.4,0.4288]
[1757656954752,0.3927,4553.0,4552.9,0.87491911]
[1757656954948,0.7101,4553.0,4552.9,1.10291911]
[1757656955442,0.7101,4553.0,4552.9,0.9241]
[1757656956143,0.3174,4553.4,4552.9,0.6247]
[1757656956349,0.7101,4553.9,4553.8,0.2008]
[1757656957749,0.7101,4553.9,4553.8,0.6961]
[1757656958245,0.7101,4553.9,4553.8,0.3967]
[1757656959446,0.7101,4553.9,4553.5,0.228]
[1757656960246,0.3927,4553.9,4553.5,0.5274]
[1757656960444,0.7101,4553.8,4553.7,0.2008]
[1757656961244,0.5098,4553.8,4553.7,0.6961]
[1757656962451,0.7101,4553.8,4553.7,0.6961]
[1757656963149,0.1924,4554.5,4554.4,0.3967]
[1757656963349,0.8315,4554.5,4554.4,0.3967]
[1757656965248,0.8315,4554.5,4554.4,0.6961]
[1757656965249,0.7101,4554.5,4554.4,0.6961]
[1757656965451,0.1214,4555.5,4554.7,0.3967]
[1757656965452,0.5098,4554.8,4554.7,0.3967]
[1757656965757,0.5098,4554.8,4554.7,0.6961]
[1757656965758,0.7101,4554.8,4554.7,0.6961]
[1757656965944,0.7101,4554.8,4554.5,0.1223]
[1757656965945,0.7101,4554.8,4554.3,0.2994]
[1757656966149,0.7101,4554.4,4554.3,0.2008]
[1757656967754,0.7101,4554.4,4554.0,0.5274]
[1757656967955,0.3174,4554.3,4554.0,0.5274]
[1757656968257,0.7101,4554.1,4554.0,0.9241]
[1757656968651,0.4388,4554.5,4554.0,0.9241]
[1757656968856,0.3174,4554.9,4554.4,0.2994]
[1757656969054,0.7101,4554.9,4554.8,0.3967]
[1757656970878,0.7101,4554.9,4554.8,0.2008]
[1757656972376,0.7101,4554.9,4554.3,0.2994]
[1757656972777,0.7101,4554.9,4554.2,0.228]
[1757656973069,0.1214,4554.5,4554.1,0.228]
[1757656973276,0.7101,4554.2,4554.1,0.2008]
[1757656974178,0.3174,4554.5,4554.2,0.2994]
[1757656974377,0.5098,4554.5,4554.4,0.6961]
[1757656977272,0.7101,4554.5,4554.4,0.6961]
[1757656977477,0.8315,4554.5,4554.4,0.3967]
[1757656977679,0.8315,4554.5,4554.4,0.2008]
[1757656977880,0.8315,4554.5,4554.1,0.228]
[1757656978775,0.5141,4554.5,4554.1,0.228]
[1757656978981,0.3963,4553.9,4553.8,0.228]
[1757656979288,0.6834,4553.9,4553.8,0.4275]
[1757656980081,0.6834,4553.9,4553.2,33.57782002]
[1757656980286,0.2009,4553.4,4553.3,0.9108]
[1757656980485,0.488,4553.4,4553.3,0.9108]
[1757656982481,0.488,4553.4,4553.3,0.6828]
[1757656982684,0.488,4553.4,4553.3,0.9108]
[1757656983382,0.6834,4553.4,4553.3,0.9108]
[1757656985782,0.3963,4553.9,4553.8,0.3952]
[1757656985977,0.1239,4554.0,4553.8,0.3952]
[1757656985978,0.2871,4554.4,4553.9,0.2876]
[1757656986182,0.1214,4555.5,4554.4,0.2876]
[1757656986385,0.8048,4555.5,4555.4,0.6828]
[1757656986583,0.8048,4555.5,4555.4,0.1995]
[1757656986783,0.8048,4555.5,4555.2,0.228]
[1757656986979,0.6834,4555.5,4555.4,0.6828]
[1757656987182,0.1239,4556.5,4556.3,0.1995]
[1757656987183,0.3963,4556.4,4556.3,0.1995]
[1757656987490,0.6834,4556.4,4556.3,0.4275]
[1757656988184,0.6834,4556.4,4556.3,0.71358835]
[1757656988491,4.90287,4556.4,4556.3,0.51408835]
[1757656988685,0.6834,4556.4,4556.3,0.28608835]
[1757656989083,0.6834,4556.4,4556.3,0.68107546]
[1757656989283,0.6834,4556.4,4556.3,0.3952]
[1757656990096,0.6834,4556.4,4556.3,0.6828]
[1757656991783,0.4825,4556.4,4556.3,0.6828]
[1757656991980,0.2009,4556.4,4556.3,0.6828]
[1757656992180,0.1239,4557.0,4556.3,0.3952]
[1757656992384,0.2871,4556.9,4556.4,0.2876]
[1757656992583,0.8073,4557.0,4556.9,0.1995]